[Event "FIDE Open Sachove Univerzity QCC"]
[Site "Ceske Budejovice"]
[Date "2020.07.04"]
[Round "4.2"]
[White "Titera, Libor"]
[Black "Zelbova, Lada"]
[Result "1-0"]
[ECO "B85"]
[WhiteElo "1843"]
[BlackElo "1637"]
[Annotator "NA"]
[PlyCount "35"]
[EventDate "2020.07.01"]
[EventType "swiss"]
[EventCountry "CZE"]
[SourceTitle "playchess.com"]
[Source "ChessBase"]
[SourceQuality "1"]
[TimeControl "40/5400+30:1800+30"]

1. e4 {[%emt 0:00:00]} c5 {[%emt 0:00:00]} 2. Nf3 {[%emt 0:00:48]} d6 {[%emt 0:00:00]} 3. d4 {[%emt 0:00:10]} cxd4 {[%emt 0:00:00]} 4. Nxd4 {[%emt 0:00:08]} Nf6 {[%emt 0:00:00]} 5. Nc3 {[%emt 0:00:14]} a6 {[%emt 0:00:00]} 6. Be2 {[%emt 0:00:47]} e6 {[%emt 0:00:34]} 7. O-O {[%emt 0:00:16]} Be7 {[%emt 0:00:14]} 8. Be3 {[%emt 0:01:14]} O-O {[%emt 0:00:33]} 9. f4 {[%emt 0:03:22]} Nc6 {[%emt 0:04:48]} 10. Kh1 {[%emt 0:00:39]} Qc7 {[%emt 0:00:54]} 11. Qd2 {[%emt 0:05:26]} Rd8 {[%emt 0:01:21]} 12. Bf3 {[%emt 0:02:26]} Bd7 {[%emt 0:08:17]} 13. g4 {[%emt 0:00:44]} Na5 {[%emt 0:09:35]} 14. g5 {[%emt 0:12:50]} Ne8 {[%emt 0:00:10]} 15. f5 {[%emt 0:04:15]} Nc4 {[%emt 0:06:11]} 16. Qf2 {[%emt 0:00:41]} Nxb2 $18 {[%emt 0:11:47]} (16... Nxe3 $16 17. fxe6 (17. Qxe3 Qc5 $11) 17... Bxe6 18. Qxe3 (18. Nxe6 fxe6 19. Bg4 Nf5 $16) 18... Qc5) 17. fxe6 {[%emt 0:01:37]} Kh8 {[%emt 0:34:12]} 18. Nd5 {[%emt 0:02:46]} 1-0

[Event "FIDE Open Sachove Univerzity QCC"]
[Site "Ceske Budejovice"]
[Date "2020.07.04"]
[Round "4.2"]
[White "Zezula, Matej"]
[Black "Roubal, Matyas"]
[Result "1/2-1/2"]
[ECO "B01"]
[WhiteElo "1125"]
[BlackElo "1443"]
[Annotator "NA"]
[PlyCount "158"]
[EventDate "2020.07.01"]
[EventType "swiss"]
[EventCountry "CZE"]
[SourceTitle "playchess.com"]
[Source "ChessBase"]
[SourceQuality "1"]
[TimeControl "40/5400+30:1800+30"]

1. e4 {[%emt 0:00:00]} d5 {[%emt 0:00:00]} 2. exd5 {[%emt 0:00:00]} Nf6 {[%emt 0:00:00]} 3. d4 {[%emt 0:00:57]} Nxd5 {[%emt 0:00:00]} 4. c4 {[%emt 0:01:12]} Nb4 {[%emt 0:00:37]} 5. Nf3 {[%emt 0:02:41]} N8c6 {[%emt 0:02:03]} 6. d5 {[%emt 0:02:14]} Bf5 {[%emt 0:03:19]} 7. Na3 {[%emt 0:04:14]} e6 {[%emt 0:02:25]} 8. dxc6 {[%emt 0:02:36]} Qxd1+ {[%emt 0:00:09]} 9. Kxd1 {[%emt 0:01:01]} O-O-O+ {[%emt 0:00:07]} 10. Bd2 {[%emt 0:01:53]} Bd3 {[%emt 0:00:43]} 11. Ne5 {[%emt 0:07:18]} Bg6 {[%emt 0:03:51]} 12. cxb7+ {[%emt 0:01:35]} Kxb7 {[%emt 0:00:09]} 13. Nxg6 {[%emt 0:08:23]} hxg6 {[%emt 0:00:21]} 14. g3 {[%emt 0:00:57]} Bc5 {[%emt 0:00:31]} 15. Bg2+ {[%emt 0:00:44]} c6 {[%emt 0:00:03]} 16. Ke2 {[%emt 0:03:11]} Nd3 {[%emt 0:02:57]} 17. Be3 {[%emt 0:07:47]} Bxe3 {[%emt 0:01:51]} 18. Kxe3 {[%emt 0:02:03]} Nxb2 {[%emt 0:00:40]} 19. Rab1 {[%emt 0:01:58]} Rd3+ {[%emt 0:00:09]} 20. Ke2 {[%emt 0:00:33]} Rxa3 {[%emt 0:00:05]} 21. Rxb2+ {[%emt 0:00:13]} Kc7 {[%emt 0:00:05]} 22. h3 {[%emt 0:04:47]} Rc3 {[%emt 0:00:39]} 23. Rhb1 {[%emt 0:01:23]} Rxc4 {[%emt 0:01:01]} 24. Rb7+ {[%emt 0:00:21]} Kd6 {[%emt 0:00:11]} 25. Rd1+ {[%emt 0:00:44]} Kc5 {[%emt 0:00:28]} 26. Rxf7 {[%emt 0:01:59]} Rb8 {[%emt 0:02:38]} 27. Rd2 {[%emt 0:01:38]} a5 {[%emt 0:00:55]} 28. Rxg7 {[%emt 0:01:16]} a4 {[%emt 0:00:31]} 29. Rxg6 {[%emt 0:00:49]} a3 {[%emt 0:00:21]} 30. Rg5+ {[%emt 0:01:19]} Kb4 {[%emt 0:01:16]} 31. Rg4 {[%emt 0:01:47]} Rxg4 {[%emt 0:00:05]} 32. hxg4 {[%emt 0:01:09]} c5 {[%emt 0:00:03]} 33. Be4 {[%emt 0:01:23]} Rg8 {[%emt 0:00:20]} 34. f3 {[%emt 0:01:29]} c4 {[%emt 0:00:13]} 35. Bc2 {[%emt 0:04:46]} Kc3 {[%emt 0:00:45]} 36. Bb1 {[%emt 0:02:47]} Rb8 {[%emt 0:00:57]} 37. Rc2+ {[%emt 0:00:22]} Kd4 {[%emt 0:00:28]} 38. Rc1 {[%emt 0:01:24]} Rb2+ {[%emt 0:00:06]} 39. Kf1 {[%emt 0:02:14]} Ke3 {[%emt 0:01:24]} 40. Rd1 {[%emt 0:02:57]} Kxf3 {[%emt 0:02:28]} 41. Rc1 {[%emt 0:38:25]} Kxg3 {[%emt 0:32:42]} 42. g5 {[%emt 0:03:00]} Kf4 {[%emt 0:06:03]} 43. g6 {[%emt 0:00:54]} Rb7 {[%emt 0:00:12]} 44. Rxc4+ {[%emt 0:00:59]} Ke5 {[%emt 0:00:13]} 45. Bc2 {[%emt 0:04:33]} Kf6 {[%emt 0:01:25]} 46. Rg4 {[%emt 0:01:48]} Kg7 {[%emt 0:00:11]} 47. Bb3 {[%emt 0:01:25]} e5 {[%emt 0:00:17]} 48. Ke2 {[%emt 0:00:18]} Rb6 {[%emt 0:00:45]} 49. Ke3 {[%emt 0:00:23]} Rb7 {[%emt 0:00:44]} 50. Bf7 {[%emt 0:01:28]} Rb1 {[%emt 0:00:28]} 51. Ra4 {[%emt 0:00:57]} Rh1 {[%emt 0:00:23]} 52. Ra7 {[%emt 0:01:39]} Rh3+ {[%emt 0:01:01]} 53. Ke4 {[%emt 0:00:51]} Kf6 {[%emt 0:00:41]} 54. Ra6+ {[%emt 0:01:20]} Kg7 {[%emt 0:00:06]} 55. Kxe5 {[%emt 0:00:40]} Rh5+ {[%emt 0:00:12]} 56. Ke6 {[%emt 0:00:24]} Rh3 {[%emt 0:00:10]} 57. Kd6 {[%emt 0:01:17]} Rf3 {[%emt 0:00:12]} 58. Kc5 {[%emt 0:00:23]} Rf5+ {[%emt 0:00:33]} 59. Kb4 {[%emt 0:00:12]} Rf4+ {[%emt 0:00:04]} 60. Bc4 {[%emt 0:00:22]} Rh4 {[%emt 0:00:09]} 61. Rxa3 {[%emt 0:00:36]} Kxg6 {[%emt 0:00:08]} 62. Ra6+ {[%emt 0:00:13]} Kg7 {[%emt 0:01:30]} 63. a4 {[%emt 0:00:11]} Kf8 {[%emt 0:00:10]} 64. Rc6 {[%emt 0:00:38]} Ke7 {[%emt 0:00:15]} 65. a5 {[%emt 0:00:15]} Kd7 {[%emt 0:00:04]} 66. Rc5 {[%emt 0:00:24]} Rh8 {[%emt 0:01:03]} 67. a6 {[%emt 0:01:14]} Ra8 {[%emt 0:00:28]} 68. Bb5+ {[%emt 0:01:00]} Kd6 {[%emt 0:00:42]} 69. Rc6+ {[%emt 0:00:11]} Kd5 {[%emt 0:00:07]} 70. Rc7 {[%emt 0:00:24]} Kd6 {[%emt 0:00:18]} 71. Rd7+ {[%emt 0:00:26]} Ke6 {[%emt 0:00:05]} 72. a7 {[%emt 0:00:28]} Rc8 {[%emt 0:00:09]} 73. Ka5 {[%emt 0:00:25]} Ra8 {[%emt 0:00:50]} 74. Kb6 {[%emt 0:00:11]} Rc8 {[%emt 0:00:06]} 75. Bc6 {[%emt 0:00:15]} Rh8 {[%emt 0:00:10]} 76. a8=Q {[%emt 0:00:19]} Rxa8 {[%emt 0:00:05]} 77. Rb7 {[%emt 0:00:51]} Ra1 {[%emt 0:00:30]} 78. Bd7+ {[%emt 0:00:23]} Kd6 {[%emt 0:00:16]} 79. Bb5 {[%emt 0:00:41]} Rb1 {[%emt 0:00:36]} 1/2-1/2

[Event "FIDE Open Sachove Univerzity QCC"]
[Site "Ceske Budejovice"]
[Date "2020.07.04"]
[Round "4.3"]
[White "Svetly, Jiri"]
[Black "Dusanek, Michal"]
[Result "1-0"]
[ECO "D85"]
[WhiteElo "1835"]
[BlackElo "1500"]
[Annotator "NA"]
[PlyCount "49"]
[EventDate "2020.07.01"]
[EventType "swiss"]
[EventCountry "CZE"]
[SourceTitle "playchess.com"]
[Source "ChessBase"]
[SourceQuality "1"]
[TimeControl "40/5400+30:1800+30"]

1. d4 {[%emt 0:00:00]} Nf6 {[%emt 0:00:32]} 2. c4 {[%emt 0:00:01]} g6 {[%emt 0:00:08]} 3. Nc3 {[%emt 0:00:04]} d5 {[%emt 0:00:04]} 4. cxd5 {[%emt 0:00:11]} Nxd5 {[%emt 0:00:05]} 5. Bd2 {[%emt 0:00:09]} Nxc3 {[%emt 0:01:05]} 6. Bxc3 {[%emt 0:00:06]} Bg7 {[%emt 0:00:54]} 7. e4 {[%emt 0:00:08]} c5 {[%emt 0:00:15]} 8. d5 {[%emt 0:01:42]} Bxc3+ {[%emt 0:03:48] D85: Exchange Grünfeld: Unusual White 7th moves and lines with 7 Nf3.} 9. bxc3 {[%emt 0:00:39]} O-O {[%emt 0:01:13]} 10. c4 {[%emt 0:04:23] [#]} a6 $146 {[%emt 0:04:00]} ({Predecessor:} 10... e6 11. Be2 exd5 12. exd5 Re8 13. Rb1 Qg5 14. Kf1 b6 15. h4 Qf6 16. h5 g5 {½-½ (41) Skorohodov,I (2260)-Ovechkin,I (2334) Dubna 2001}) 11. Qd2 {[%emt 0:03:59]} Qd6 {[%emt 0:04:33]} 12. Bd3 {[%emt 0:07:19]} Rd8 {[%emt 0:03:49]} 13. f4 {[%emt 0:03:25]} e5 {[%emt 0:02:30]} 14. Ne2 {[%emt 0:02:48]} Nc6 {[%emt 0:02:56]} 15. O-O {[%emt 0:02:18]} Bg4 {[%emt 0:12:50]} 16. Ng3 {[%emt 0:02:27]} Bc8 {[%emt 0:07:00]} 17. f5 {[%emt 0:03:25]} Nd4 {[%emt 0:01:15]} 18. fxg6 {[%emt 0:07:20]} fxg6 $2 {[%emt 0:03:22] [#]} (18... Qxg6 19. Ne2 Bg4) 19. Qg5 $18 {[%emt 0:07:12]} Rf8 {[%emt 0:17:15]} 20. Rxf8+ {[%emt 0:05:53]} Kxf8 {[%emt 0:00:39]} 21. Rf1+ {[%emt 0:06:21]} Kg8 {[%emt 0:00:47]} 22. Rf6 {[%emt 0:06:15]} Qc7 {[%emt 0:00:49]} 23. Nh5 {[%emt 0:05:55]} b5 {[%emt 0:04:12]} 24. d6 {[%emt 0:03:33]} Qd7 {[%emt 0:00:32]} 25. Rxg6+ {[%emt 0:00:59]} 1-0

[Event "FIDE Open Sachove Univerzity QCC"]
[Site "Ceske Budejovice"]
[Date "2020.07.04"]
[Round "4.4"]
[White "Simacek, Vaclav"]
[Black "Veverka, Vladimir"]
[Result "1-0"]
[ECO "C02"]
[WhiteElo "1816"]
[BlackElo "1644"]
[Annotator "NA"]
[PlyCount "97"]
[EventDate "2020.07.01"]
[EventType "swiss"]
[EventCountry "CZE"]
[SourceTitle "playchess.com"]
[Source "ChessBase"]
[SourceQuality "1"]
[TimeControl "40/5400+30:1800+30"]

1. e4 {[%emt 0:00:00]} e6 {[%emt 0:00:00]} 2. d4 {[%emt 0:00:00]} d5 {[%emt 0:00:00]} 3. e5 {[%emt 0:02:21]} c5 {[%emt 0:00:16]} 4. Nf3 {[%emt 0:00:30]} Nc6 {[%emt 0:00:48]} 5. Bb5 {[%emt 0:00:14]} Qb6 {[%emt 0:00:27]} 6. a4 {[%emt 0:00:32] C02: French: Advance Variation.} a6 {[%emt 0:00:26]} 7. Bxc6+ {[%emt 0:00:54]} bxc6 {[%emt 0:00:27]} 8. O-O {[%emt 0:00:30]} cxd4 {[%emt 0:00:55]} 9. Nxd4 {[%emt 0:00:17]} c5 {[%emt 0:00:41] [#]} 10. a5 $146 {[%emt 0:02:30]} ({Predecessor:} 10. Nf3 Ne7 11. Nc3 Bb7 12. Ne2 Ng6 13. Ra3 Qc7 14. Nf4 Nxe5 15. Ng5 h6 16. Ngxe6 fxe6 17. Nxe6 {0-1 (30) Hyde,K (1404)-Groffen,H (2224) IECG email 2000}) 10... Qc7 {[%emt 0:06:26]} 11. Nf3 {[%emt 0:00:17]} Bb7 {[%emt 0:01:26]} 12. c3 {[%emt 0:03:23]} g6 {[%emt 0:05:33]} 13. Be3 {[%emt 0:00:25]} Bg7 {[%emt 0:06:00]} 14. b4 {[%emt 0:00:37]} d4 {[%emt 0:49:35]} 15. cxd4 {[%emt 0:01:59]} cxd4 {[%emt 0:00:50]} 16. Bxd4 {[%emt 0:01:41]} Rd8 {[%emt 0:08:44]} 17. Qa4+ {[%emt 0:03:02]} Bc6 {[%emt 0:01:29]} 18. Bb6 {[%emt 0:00:30]} Bxa4 {[%emt 0:00:30]} 19. Bxc7 {[%emt 0:01:21]} Rd7 {[%emt 0:01:59]} 20. Bd6 {[%emt 0:00:30]} Rxd6 {[%emt 0:00:30]} 21. Nc3 {[%emt 0:00:30]} Rd5 {[%emt 0:00:30]} 22. Rxa4 {[%emt 0:00:30]} Rd3 {[%emt 0:00:58]} 23. Ne4 {[%emt 0:00:14]} Rd5 {[%emt 0:01:20]} 24. Nc5 {[%emt 0:01:53]} Bxe5 {[%emt 0:00:23]} 25. Nxe5 {[%emt 0:00:07]} Rxe5 {[%emt 0:00:09]} 26. Nxa6 {[%emt 0:00:04]} Ne7 {[%emt 0:00:54]} 27. Nc5 {[%emt 0:00:42]} Nc6 {[%emt 0:00:54]} 28. a6 {[%emt 0:02:11]} Ke7 {[%emt 0:00:50]} 29. f4 {[%emt 0:00:51]} Rd5 {[%emt 0:00:44]} 30. Rc1 {[%emt 0:00:59]} Na7 {[%emt 0:02:30]} 31. Ne4 {[%emt 0:01:51]} f5 {[%emt 0:02:56]} 32. Rc7+ {[%emt 0:02:37]} Rd7 {[%emt 0:00:18]} 33. Rxd7+ {[%emt 0:01:03]} Kxd7 {[%emt 0:00:08]} 34. Nc5+ {[%emt 0:01:59]} Kc6 {[%emt 0:03:37]} 35. Nxe6 {[%emt 0:02:21]} Kb5 {[%emt 0:00:18]} 36. Ra5+ {[%emt 0:00:06]} Kxb4 {[%emt 0:00:45]} 37. Rd5 {[%emt 0:00:48]} Re8 {[%emt 0:01:25]} 38. Ng5 {[%emt 0:03:09]} h6 {[%emt 0:01:22]} 39. Nf7 {[%emt 0:00:38]} Re6 $18 {[%emt 0:00:36]} 40. Nxh6 {[%emt 0:01:06]} Rxa6 {[%emt 0:00:16]} 41. Nf7 {[%emt 0:30:42]} Kc4 {[%emt 0:30:59]} 42. Rd1 {[%emt 0:01:04]} Nb5 {[%emt 0:00:53]} 43. Ne5+ {[%emt 0:00:14]} Kc5 {[%emt 0:00:31]} 44. Rd2 {[%emt 0:02:41]} Nc3 {[%emt 0:00:00]} 45. h3 {[%emt 0:00:00]} Nd5 {[%emt 0:00:00]} 46. g3 {[%emt 0:00:00]} Re6 {[%emt 0:00:00]} 47. Kf2 {[%emt 0:00:00]} g5 {[%emt 0:00:00]} 48. Rc2+ {[%emt 0:00:00]} Kb5 {[%emt 0:00:00]} 49. Nd3 {[%emt 0:00:00]} 1-0

[Event "FIDE Open Sachove Univerzity QCC"]
[Site "Ceske Budejovice"]
[Date "2020.07.04"]
[Round "4.4"]
[White "Gorej, Vojtech"]
[Black "Berkovec, Jakub"]
[Result "1-0"]
[ECO "B77"]
[WhiteElo "1395"]
[BlackElo "1224"]
[Annotator "NA"]
[PlyCount "132"]
[EventDate "2020.07.01"]
[EventType "swiss"]
[EventCountry "CZE"]
[SourceTitle "playchess.com"]
[Source "ChessBase"]
[SourceQuality "1"]
[TimeControl "40/5400+30:1800+30"]

1. e4 c5 {[%emt 0:00:00]} 2. Nf3 {[%emt 0:06:21]} d6 {[%emt 0:00:21]} 3. d4 {[%emt 0:00:59]} cxd4 {[%emt 0:01:10]} 4. Nxd4 {[%emt 0:04:41]} Nf6 {[%emt 0:01:16]} 5. Nc3 {[%emt 0:00:15]} g6 {[%emt 0:01:02]} 6. Be3 {[%emt 0:01:13]} Bg7 {[%emt 0:01:15]} 7. Bc4 {[%emt 0:01:50]} O-O {[%emt 0:01:55]} 8. f3 {[%emt 0:02:08]} Nc6 {[%emt 0:01:45]} 9. Qd2 {[%emt 0:03:08]} Nd7 {[%emt 0:02:37]} 10. O-O-O {[%emt 0:07:16]} Nb6 {[%emt 0:00:59]} 11. Bb3 {[%emt 0:09:48]} Na5 {[%emt 0:02:55]} 12. Qe2 {[%emt 0:03:56]} Bd7 {[%emt 0:05:39]} 13. g4 {[%emt 0:01:19]} Rc8 {[%emt 0:02:53]} 14. h4 {[%emt 0:01:54]} Nac4 {[%emt 0:07:14]} 15. h5 {[%emt 0:03:18]} Nxe3 {[%emt 0:01:03]} 16. Qxe3 {[%emt 0:00:20]} Nc4 {[%emt 0:02:26]} 17. Bxc4 {[%emt 0:00:47]} Rxc4 {[%emt 0:00:54]} 18. hxg6 {[%emt 0:06:27]} hxg6 {[%emt 0:03:33]} 19. Nde2 {[%emt 0:03:04]} Qb6 {[%emt 0:02:06]} 20. Qxb6 {[%emt 0:00:53]} axb6 {[%emt 0:00:11]} 21. Nd5 {[%emt 0:00:22]} Re8 {[%emt 0:04:42]} 22. Nxb6 {[%emt 0:00:52]} Rc7 {[%emt 0:02:24]} 23. Nxd7 {[%emt 0:00:51]} Rxd7 {[%emt 0:00:19]} 24. Rd3 {[%emt 0:01:57]} Rc8 {[%emt 0:03:16]} 25. Ra3 {[%emt 0:02:16]} Rdc7 {[%emt 0:01:06]} 26. c3 {[%emt 0:00:36]} Kf8 {[%emt 0:02:57]} 27. Kd2 {[%emt 0:02:29]} Ke8 {[%emt 0:01:47]} 28. Rh7 {[%emt 0:01:16]} Kf8 {[%emt 0:01:02]} 29. Ra7 {[%emt 0:00:44]} Kg8 {[%emt 0:01:21]} 30. Rh1 {[%emt 0:00:11]} Kf8 {[%emt 0:01:32]} 31. Nf4 {[%emt 0:03:14]} e6 {[%emt 0:02:27]} 32. Nd3 {[%emt 0:01:11]} Ke7 {[%emt 0:01:56]} 33. Nb4 {[%emt 0:01:26]} Rh8 {[%emt 0:02:45]} 34. Rxh8 {[%emt 0:00:33]} Bxh8 {[%emt 0:00:25]} 35. Nc2 {[%emt 0:00:37]} Be5 {[%emt 0:01:29]} 36. Kd3 {[%emt 0:00:37]} Kd7 {[%emt 0:03:12]} 37. Na3 {[%emt 0:01:14]} Ke7 {[%emt 0:02:09]} 38. Nc4 {[%emt 0:00:52]} Kd7 {[%emt 0:02:27]} 39. Na5 {[%emt 0:02:22]} b6 {[%emt 0:01:01]} 40. Rxc7+ {[%emt 0:00:06]} Kxc7 {[%emt 0:01:22]} 41. Nc4 {[%emt 0:30:23]} Bf6 {[%emt 0:32:09]} 42. Ne3 {[%emt 0:00:40]} Kc6 {[%emt 0:01:59]} 43. Kc4 {[%emt 0:01:35]} Bg5 {[%emt 0:02:01]} 44. Nc2 {[%emt 0:00:20]} b5+ {[%emt 0:00:48]} 45. Kd3 {[%emt 0:00:20]} Bc1 {[%emt 0:02:44]} 46. Nd4+ {[%emt 0:00:58]} Kb6 {[%emt 0:02:11]} 47. b3 {[%emt 0:00:56]} Ba3 {[%emt 0:01:43]} 48. Ne2 {[%emt 0:00:35]} Bc5 {[%emt 0:01:17]} 49. Nd4 {[%emt 0:00:22]} Ba3 {[%emt 0:01:06]} 50. b4 {[%emt 0:00:24]} Bc1 {[%emt 0:00:41]} 51. c4 {[%emt 0:00:17]} bxc4+ {[%emt 0:02:18]} 52. Kxc4 {[%emt 0:00:44]} Bg5 {[%emt 0:00:52]} 53. a4 {[%emt 0:00:17]} Bd8 {[%emt 0:00:33]} 54. a5+ {[%emt 0:00:23]} Kb7 {[%emt 0:01:06]} 55. Kb5 {[%emt 0:00:26]} Bc7 {[%emt 0:00:28]} 56. a6+ {[%emt 0:00:15]} Ka8 {[%emt 0:01:13]} 57. Kc6 {[%emt 0:00:26]} Bb8 {[%emt 0:00:29]} 58. Nb5 {[%emt 0:00:46]} d5 {[%emt 0:01:00]} 59. Nc7+ {[%emt 0:02:21]} Bxc7 {[%emt 0:00:50]} 60. Kxc7 {[%emt 0:00:28]} d4 {[%emt 0:01:29]} 61. b5 {[%emt 0:04:20]} Ka7 {[%emt 0:00:48]} 62. b6+ {[%emt 0:00:09]} Kxa6 {[%emt 0:00:13]} 63. b7 {[%emt 0:00:12]} d3 {[%emt 0:00:20]} 64. b8=Q {[%emt 0:00:10]} Ka5 {[%emt 0:00:10]} 65. Kc6 {[%emt 0:00:05]} Ka4 {[%emt 0:00:09]} 66. Kc5 g5 1-0

[Event "FIDE Open Sachove Univerzity QCC"]
[Site "Ceske Budejovice"]
[Date "2020.07.10"]
[Round "4.5"]
[White "Straka, Zdenek"]
[Black "Matlocha, Lubomir"]
[Result "1/2-1/2"]
[ECO "D02"]
[WhiteElo "1812"]
[BlackElo "1646"]
[Annotator "NA RC"]
[PlyCount "88"]
[EventDate "2020.07.01"]
[EventType "swiss"]
[EventCountry "CZE"]
[TimeControl "40/5400+30:1800+30"]

1. d4 {[%emt 0:11:21]} d5 {[%emt 0:01:30]} 2. Bf4 {[%emt 0:00:34]} e6 {[%emt 0:02:24]} 3. e3 {[%emt 0:00:16]} Nc6 {[%emt 0:00:49]} 4. Nf3 {[%emt 0:01:36]} Bd6 {[%emt 0:04:33]} 5. Bg3 {[%emt 0:01:42]} Bxg3 {[%emt 0:03:38]} 6. hxg3 {[%emt 0:00:42]} Qe7 {[%emt 0:04:29]} 7. c3 {[%emt 0:02:14]} Bd7 {[%emt 0:04:56]} 8. Nbd2 {[%emt 0:01:38]} a6 {[%emt 0:06:31]} 9. Qc2 {[%emt 0:04:51]} h6 {[%emt 0:02:09]} 10. O-O-O {[%emt 0:03:45]} Nf6 {[%emt 0:14:58]} 11. Bd3 {[%emt 0:18:04]} O-O-O {[%emt 0:12:46]} 12. Kb1 {[%emt 0:06:48]} e5 {[%emt 0:05:28]} 13. Nxe5 {[%emt 0:05:04]} Nxe5 {[%emt 0:00:26]} 14. dxe5 {[%emt 0:00:03]} Qxe5 {[%emt 0:00:22]} 15. Nb3 {[%emt 0:02:26]} Ba4 {[%emt 0:00:57]} 16. Qe2 {[%emt 0:02:18]} Rd6 {[%emt 0:05:44]} 17. Rc1 {[%emt 0:02:12]} Bxb3 {[%emt 0:03:23]} 18. axb3 {[%emt 0:00:02]} Rb6 {[%emt 0:02:36]} 19. Qc2 {[%emt 0:03:37]} Kb8 {[%emt 0:00:42]} 20. Rh4 {[%emt 0:01:33]} c5 {[%emt 0:03:01]} 21. Rf4 {[%emt 0:05:50]} Rd8 {[%emt 0:01:06]} 22. Rd1 {[%emt 0:04:52]} Qe7 {[%emt 0:02:52]} 23. Ka1 {[%emt 0:06:24]} Rbd6 {[%emt 0:01:48]} 24. b4 {[%emt 0:03:31]} c4 {[%emt 0:01:31]} 25. Be2 {[%emt 0:02:04]} g5 {[%emt 0:03:36]} 26. Rfd4 {[%emt 0:00:41]} b5 {[%emt 0:00:25]} 27. Bf3 {[%emt 0:02:29]} Qe6 {[%emt 0:00:31]} 28. Qe2 {[%emt 0:00:59]} Ne4 {[%emt 0:01:16]} 29. Bxe4 {[%emt 0:02:44]} dxe4 {[%emt 0:00:01]} 30. Rxd6 {[%emt 0:00:50]} Rxd6 {[%emt 0:00:01]} 31. Rd4 {[%emt 0:01:17]} Rxd4 {[%emt 0:00:21]} 32. exd4 {[%emt 0:00:17]} f5 {[%emt 0:01:13]} 33. Kb1 {[%emt 0:00:19]} Kc7 {[%emt 0:00:22]} 34. Kc2 {[%emt 0:00:22]} Kd6 {[%emt 0:00:15]} 35. Qe3 {[%emt 0:00:38]} Kd5 {[%emt 0:01:11]} 36. Kd2 {[%emt 0:01:02]} Qd6 {[%emt 0:00:30]} 37. Ke2 {[%emt 0:01:41]} Qg6 {[%emt 0:00:00]} 38. Kf1 {[%emt 0:00:46]} Qh5 {[%emt 0:00:08]} 39. f3 {[%emt 0:00:42]} Qh1+ {[%emt 0:01:01]} 40. Kf2 {[%emt 0:00:22]} Qb1 {[%emt 0:00:35]} 41. Qd2 {[%emt 0:06:26]} exf3 {[%emt 0:02:01]} 42. gxf3 {[%emt 0:04:10]} Qh1 {[%emt 0:00:42]} 43. Qe1 {[%emt 0:03:53]} Qh2+ {[%emt 0:06:04]} 44. Kf1 {[%emt 0:00:40]} Qh1+ {[%emt 0:01:14]} 1/2-1/2

[Event "FIDE Open Sachove Univerzity QCC"]
[Site "Ceske Budejovice"]
[Date "2020.07.04"]
[Round "4.5"]
[White "Rolinkova, Adela"]
[Black "Day, Sophia Olivia"]
[Result "1-0"]
[ECO "C68"]
[WhiteElo "1360"]
[BlackElo "1099"]
[Annotator "NA"]
[PlyCount "105"]
[EventDate "2020.07.01"]
[EventType "swiss"]
[EventCountry "CZE"]
[SourceTitle "playchess.com"]
[Source "ChessBase"]
[SourceQuality "1"]
[TimeControl "40/5400+30:1800+30"]

1. e4 {[%emt 0:00:00]} e5 {[%emt 0:00:00]} 2. Nf3 {[%emt 0:00:00]} Nc6 {[%emt 0:00:04]} 3. Bb5 {[%emt 0:00:18]} a6 {[%emt 0:00:17]} 4. Bxc6 {[%emt 0:00:24]} dxc6 {[%emt 0:00:37]} 5. Nc3 {[%emt 0:00:44]} Bd6 {[%emt 0:00:57]} 6. O-O {[%emt 0:00:42]} Nf6 {[%emt 0:00:16]} 7. d3 {[%emt 0:00:24]} Bg4 {[%emt 0:01:05]} 8. h3 {[%emt 0:02:24]} Bh5 {[%emt 0:00:18]} 9. Re1 {[%emt 0:02:21]} Qd7 {[%emt 0:01:41]} 10. Be3 {[%emt 0:03:16]} O-O-O {[%emt 0:04:27]} 11. Qe2 {[%emt 0:02:36]} h6 {[%emt 0:01:55]} 12. Kf1 {[%emt 0:21:03]} g5 {[%emt 0:02:59]} 13. Red1 {[%emt 0:18:05]} c5 {[%emt 0:05:13]} 14. a3 {[%emt 0:06:00]} g4 {[%emt 0:01:07]} 15. hxg4 {[%emt 0:00:59]} Bxg4 {[%emt 0:01:40]} 16. Ke1 {[%emt 0:02:17]} h5 {[%emt 0:02:55]} 17. Bg5 {[%emt 0:05:23]} Qe6 {[%emt 0:02:14]} 18. Bh4 {[%emt 0:03:29]} Rdg8 {[%emt 0:02:53]} 19. Kd2 {[%emt 0:02:52]} Bxf3 20. Qxf3 {[%emt 0:00:25]} Rg4 {[%emt 0:15:54]} 21. Qxf6 {[%emt 0:01:35]} Qxf6 {[%emt 0:02:20]} 22. Bxf6 {[%emt 0:00:39]} Rh6 {[%emt 0:00:29]} 23. Bxe5 {[%emt 0:01:37]} Bxe5 {[%emt 0:00:54]} 24. g3 {[%emt 0:00:22]} h4 {[%emt 0:00:35]} 25. gxh4 {[%emt 0:00:16]} Rhxh4 {[%emt 0:03:37]} 26. Rg1 {[%emt 0:02:23]} Rf4 {[%emt 0:03:56]} 27. Rg2 {[%emt 0:01:33]} Rhg4 {[%emt 0:02:45]} 28. Rxg4 {[%emt 0:01:02]} Rxg4 {[%emt 0:00:11]} 29. Rf1 {[%emt 0:00:13]} Rg2 {[%emt 0:01:38]} 30. Kd1 {[%emt 0:00:19]} Bd4 {[%emt 0:00:32]} 31. f4 {[%emt 0:01:55]} Be3 {[%emt 0:00:22]} 32. Ne2 {[%emt 0:00:08]} b5 {[%emt 0:01:21]} 33. c3 {[%emt 0:01:00]} Kb7 {[%emt 0:00:25]} 34. b4 {[%emt 0:00:47]} Kb6 {[%emt 0:00:30]} 35. d4 {[%emt 0:00:17]} cxd4 {[%emt 0:00:51]} 36. cxd4 {[%emt 0:00:15]} a5 {[%emt 0:00:43]} 37. e5 {[%emt 0:00:31]} Kc6 {[%emt 0:00:53]} 38. Rf3 {[%emt 0:02:53]} Bf2 39. Kd2 {[%emt 0:01:32]} Kd5 {[%emt 0:02:47]} 40. Kd3 {[%emt 0:01:38]} a4 {[%emt 0:01:54]} 41. f5 {[%emt 0:30:57]} Rh2 {[%emt 0:37:56]} 42. Nc3+ {[%emt 0:00:39]} Kc6 {[%emt 0:01:17]} 43. d5+ {[%emt 0:00:56]} Kb6 {[%emt 0:01:32]} 44. e6 {[%emt 0:02:04]} fxe6 {[%emt 0:01:21]} 45. dxe6 {[%emt 0:00:20]} Kc6 {[%emt 0:00:36]} 46. e7 {[%emt 0:00:45]} Kd7 {[%emt 0:00:35]} 47. f6 {[%emt 0:00:19]} Be1 {[%emt 0:01:08]} 48. f7 {[%emt 0:01:25]} Rd2+ {[%emt 0:02:01]} 49. Ke3 {[%emt 0:00:14]} Kxe7 {[%emt 0:00:20]} 50. f8=Q+ {[%emt 0:00:10]} Kd7 {[%emt 0:00:43]} 51. Rf7+ {[%emt 0:00:35]} Kc6 {[%emt 0:00:14]} 52. Qc5+ {[%emt 0:00:08]} Kb7 {[%emt 0:00:20]} 53. Qxc7+ {[%emt 0:00:06]} 1-0